Workbook

Sheet liga_3
A1: TERMINARZ II rundy - 3 liga
A3: lp | B3: Zespół - gospodarz | C3: Zespół - przyjezdny | D3: Sędzia meczu | E3: Wynik
B4: 06.03.2021 / sobota / 10:00 kolejka 15
A5: 3079 | B5: II KS ATS Stargard | C5: II Visonex LUKS TOP Wierzbięcin | D5: zapewnia gospodarz | E5: 2 | F5: : | G5: 8
A6: =A5+1 -> 3080 | B6: I KTS Koszalinianin Koszalin | C6: MSZS Świdwin | D6: zapewnia gospodarz | E6: 7 | F6: : | G6: 3
A7: 3081 | B7: II KTS Koszalinianin Koszalin | C7: UKS TEAM TENIS 2005 Białogard | D7: zapewnia gospodarz | E7: 8 | F7: : | G7: 2
A8: 3082 | B8: Trzynastka Szczecin | C8: UKS-T VICTORIA Chojna | D8: zapewnia gospodarz | E8: 6 | F8: : | G8: 4
A9: 3083 | B9: LUKS Gryfice | C9: KKTS Kołobrzeg | D9: zapewnia gospodarz | E9: 6 | F9: : | G9: 4
A10: 3084 | B10: LUKS Fala Trzebiatów | C10: UKS Czarni Pieszcz | D10: zapewnia gospodarz | E10: 7 | F10: : | G10: 3
B12: 14:30 kolejka 16
A13: =A10+1 -> 3085 | B13: I KTS Koszalinianin Koszalin | C13: UKS TEAM TENIS 2005 Białogard | D13: zapewnia gospodarz | E13: 6 | F13: : | G13: 4
A14: =A13+1 -> 3086 | B14: II KTS Koszalinianin Koszalin | C14: MSZS Świdwin | D14: zapewnia gospodarz | E14: 8 | F14: : | G14: 2
A15: =A14+1 -> 3087 | B15: II UKS Champion Police | C15: UKS-T VICTORIA Chojna | D15: zapewnia gospodarz | E15: 6 | F15: : | G15: 4
A16: =A15+1 -> 3088 | B16: LUKS Gryfice | C16: UKS Czarni Pieszcz | D16: zapewnia gospodarz | E16: 9 | F16: : | G16: 1
A17: =A16+1 -> 3089 | B17: LUKS Fala Trzebiatów | C17: KKTS Kołobrzeg | D17: zapewnia gospodarz | E17: 4 | F17: : | G17: 6
A20: lp | B20: Zespół - gospodarz | C20: Zespół - przyjezdny | D20: Sędzia meczu | E20: Wynik
B21: 13.03.2021 / sobota / 10:00 kolejka 17
A22: =A17+1 -> 3090 | B22: LUKS Fala Trzebiatów | C22: LUKS Gryfice | D22: zapewnia gospodarz | E22: 6 | F22: : | G22: 4
A23: =A22+1 -> 3091 | B23: UKS Czarni Pieszcz | C23: Trzynastka Szczecin | D23: zapewnia gospodarz | E23: 1 | F23: : | G23: 9
A24: 3092 | B24: KKTS Kołobrzeg | C24: II UKS Champion Police | D24: zapewnia gospodarz | E24: 7 | F24: : | G24: 3
A25: 3093 | B25: UKS-T VICTORIA Chojna | C25: II KTS Koszalinianin Koszalin | D25: zapewnia gospodarz | E25: 3 | F25: : | G25: 7
A26: 3094 | B26: UKS TEAM TENIS 2005 Białogard | C26: II KS ATS Stargard | D26: zapewnia gospodarz | E26: 7 | F26: : | G26: 3
A27: 3095 | B27: MSZS Świdwin | C27: II Visonex LUKS TOP Wierzbięcin | D27: zapewnia gospodarz | E27: 1 | F27: : | G27: 9
B29: 14:30 kolejka 18
A30: =A27+1 -> 3096 | B30: UKS Czarni Pieszcz | C30: II UKS Champion Police | D30: zapewnia gospodarz | E30: 1 | F30: : | G30: 9
A31: =A30+1 -> 3097 | B31: KKTS Kołobrzeg | C31: Trzynastka Szczecin | D31: zapewnia gospodarz | E31: 2 | F31: : | G31: 8
A32: =A31+1 -> 3098 | B32: UKS-T VICTORIA Chojna | C32: I KTS Koszalinianin Koszalin | D32: zapewnia gospodarz | E32: 3 | F32: : | G32: 7
A33: =A32+1 -> 3099 | B33: UKS TEAM TENIS 2005 Białogard | C33: II Visonex LUKS TOP Wierzbięcin | D33: zapewnia gospodarz | E33: 0 | F33: : | G33: 10
A34: =A33+1 -> 3100 | B34: MSZS Świdwin | C34: II KS ATS Stargard | D34: zapewnia gospodarz | E34: 6 | F34: : | G34: 4
A36: lp | B36: Zespół - gospodarz | C36: Zespół - przyjezdny | D36: Sędzia meczu | E36: Wynik
B37: 29.05.2021 / sobota / 10:00 kolejka 19 | F37: =IF(E37="","",":") -> 
A38: =A34+1 -> 3101 | B38: MSZS Świdwin | C38: UKS TEAM TENIS 2005 Białogard | D38: zapewnia gospodarz
A39: =A38+1 -> 3102 | B39: II KS ATS Stargard | C39: UKS-T VICTORIA Chojna | D39: zapewnia gospodarz
A40: 3103 | B40: I KTS Koszalinianin Koszalin | C40: KKTS Kołobrzeg | D40: zapewnia gospodarz
A41: 3104 | B41: II KTS Koszalinianin Koszalin | C41: UKS Czarni Pieszcz | D41: zapewnia gospodarz
A42: 3105 | B42: II UKS Champion Police | C42: LUKS Fala Trzebiatów | D42: zapewnia gospodarz
A43: 3106 | B43: Trzynastka Szczecin | C43: LUKS Gryfice | D43: zapewnia gospodarz
B45: 14:30 kolejka 20 | F45: =IF(E45="","",":") -> 
A46: =A43+1 -> 3107 | B46: II Visonex LUKS TOP Wierzbięcin | C46: UKS-T VICTORIA Chojna | D46: zapewnia gospodarz
A47: =A46+1 -> 3108 | B47: I KTS Koszalinianin Koszalin | C47: UKS Czarni Pieszcz | D47: zapewnia gospodarz
A48: =A47+1 -> 3109 | B48: II KTS Koszalinianin Koszalin | C48: KKTS Kołobrzeg | D48: zapewnia gospodarz
A49: =A48+1 -> 3110 | B49: II UKS Champion Police | C49: LUKS Gryfice | D49: zapewnia gospodarz
A50: =A49+1 -> 3111 | B50: Trzynastka Szczecin | C50: LUKS Fala Trzebiatów | D50: zapewnia gospodarz
A52: lp | B52: Zespół - gospodarz | C52: Zespół - przyjezdny | D52: Sędzia meczu | E52: Wynik
B53: 05.06.2021 / sobota / 10:00 kolejka 21 | F53: =IF(E53="","",":") -> 
A54: =A50+1 -> 3112 | B54: Trzynastka Szczecin | C54: II UKS Champion Police | D54: zapewnia gospodarz
A55: =A54+1 -> 3113 | B55: LUKS Gryfice | C55: II KTS Koszalinianin Koszalin | D55: zapewnia gospodarz
A56: 3114 | B56: LUKS Fala Trzebiatów | C56: I KTS Koszalinianin Koszalin | D56: zapewnia gospodarz
A57: 3115 | B57: UKS Czarni Pieszcz | C57: II KS ATS Stargard | D57: zapewnia gospodarz
A58: 3116 | B58: KKTS Kołobrzeg | C58: II Visonex LUKS TOP Wierzbięcin | D58: zapewnia gospodarz
A59: 3117 | B59: UKS-T VICTORIA Chojna | C59: MSZS Świdwin | D59: zapewnia gospodarz
B61: 14:30 kolejka 22 | F61: =IF(E61="","",":") -> 
A62: =A59+1 -> 3118 | B62: LUKS Gryfice | C62: I KTS Koszalinianin Koszalin | D62: zapewnia gospodarz
A63: =A62+1 -> 3119 | B63: LUKS Fala Trzebiatów | C63: II KTS Koszalinianin Koszalin | D63: zapewnia gospodarz
A64: =A63+1 -> 3120 | B64: UKS Czarni Pieszcz | C64: II Visonex LUKS TOP Wierzbięcin | D64: zapewnia gospodarz
A65: =A64+1 -> 3121 | B65: KKTS Kołobrzeg | C65: II KS ATS Stargard | D65: zapewnia gospodarz
A66: =A65+1 -> 3122 | B66: UKS-T VICTORIA Chojna | C66: UKS TEAM TENIS 2005 Białogard | D66: zapewnia gospodarz
A68: lp | B68: Zespół - gospodarz | C68: Zespół - przyjezdny | D68: Sędzia meczu | E68: Wynik
B69: 12.06.2021 / sobota / 10:00 kolejka 23 | F69: =IF(E69="","",":") -> 
A70: =A66+1 -> 3123 | B70: UKS TEAM TENIS 2005 Białogard | C70: KKTS Kołobrzeg | D70: zapewnia gospodarz
A71: =A70+1 -> 3124 | B71: MSZS Świdwin | C71: UKS Czarni Pieszcz | D71: zapewnia gospodarz
A72: 3125 | B72: II Visonex LUKS TOP Wierzbięcin | C72: LUKS Fala Trzebiatów | D72: zapewnia gospodarz
A73: 3126 | B73: II KS ATS Stargard | C73: LUKS Gryfice | D73: zapewnia gospodarz
A74: 3127 | B74: I KTS Koszalinianin Koszalin | C74: Trzynastka Szczecin | D74: zapewnia gospodarz
A75: 3128 | B75: II KTS Koszalinianin Koszalin | C75: II UKS Champion Police | D75: zapewnia gospodarz
B77: 14:30 kolejka 24 | F77: =IF(E77="","",":") -> 
A78: =A75+1 -> 3129 | B78: UKS TEAM TENIS 2005 Białogard | C78: UKS Czarni Pieszcz | D78: zapewnia gospodarz
A79: =A78+1 -> 3130 | B79: MSZS Świdwin | C79: KKTS Kołobrzeg | D79: zapewnia gospodarz
A80: =A79+1 -> 3131 | B80: II Visonex LUKS TOP Wierzbięcin | C80: LUKS Gryfice | D80: zapewnia gospodarz
A81: =A80+1 -> 3132 | B81: II KS ATS Stargard | C81: LUKS Fala Trzebiatów | D81: zapewnia gospodarz
A82: =A81+1 -> 3133 | B82: I KTS Koszalinianin Koszalin | C82: II UKS Champion Police | D82: zapewnia gospodarz
A83: =A82+1 -> 3134 | B83: II KTS Koszalinianin Koszalin | C83: Trzynastka Szczecin | D83: zapewnia gospodarz
A85: lp | B85: Zespół - gospodarz | C85: Zespół - przyjezdny | D85: Sędzia meczu | E85: Wynik
B86: 19.06.2021 / sobota / 10:00 kolejka 25 | F86: =IF(E86="","",":") -> 
A87: =A83+1 -> 3135 | B87: II KTS Koszalinianin Koszalin | C87: I KTS Koszalinianin Koszalin | D87: zapewnia gospodarz
A88: =A87+1 -> 3136 | B88: II UKS Champion Police | C88: II KS ATS Stargard | D88: zapewnia gospodarz
A89: 3137 | B89: Trzynastka Szczecin | C89: II Visonex LUKS TOP Wierzbięcin | D89: zapewnia gospodarz
A90: 3138 | B90: LUKS Gryfice | C90: MSZS Świdwin | D90: zapewnia gospodarz
A91: 3139 | B91: LUKS Fala Trzebiatów | C91: UKS TEAM TENIS 2005 Białogard | D91: zapewnia gospodarz
A92: 3140 | B92: KKTS Kołobrzeg | C92: UKS-T VICTORIA Chojna | D92: zapewnia gospodarz
B94: 14:30 kolejka 26 | F94: =IF(E94="","",":") -> 
A95: =A92+1 -> 3141 | B95: II UKS Champion Police | C95: II Visonex LUKS TOP Wierzbięcin | D95: zapewnia gospodarz
A96: =A95+1 -> 3142 | B96: Trzynastka Szczecin | C96: II KS ATS Stargard | D96: zapewnia gospodarz
A97: =A96+1 -> 3143 | B97: LUKS Gryfice | C97: UKS TEAM TENIS 2005 Białogard | D97: zapewnia gospodarz
A98: =A97+1 -> 3144 | B98: LUKS Fala Trzebiatów | C98: MSZS Świdwin | D98: zapewnia gospodarz
A99: =A98+1 -> 3145 | B99: UKS Czarni Pieszcz | C99: UKS-T VICTORIA Chojna | D99: zapewnia gospodarz
A101: lp | B101: Zespół - gospodarz | C101: Zespół - przyjezdny | D101: Sędzia meczu | E101: Wynik
B102: 26.06.2021 / sobota/ 10:00 kolejka 27 | F102: =IF(E102="","",":") -> 
A103: =A99+1 -> 3146 | B103: KKTS Kołobrzeg | C103: UKS Czarni Pieszcz | D103: zapewnia gospodarz
A104: =A103+1 -> 3147 | B104: UKS-T VICTORIA Chojna | C104: LUKS Fala Trzebiatów | D104: zapewnia gospodarz
A105: 3148 | B105: UKS TEAM TENIS 2005 Białogard | C105: Trzynastka Szczecin | D105: zapewnia gospodarz
A106: 3149 | B106: MSZS Świdwin | C106: II UKS Champion Police | D106: zapewnia gospodarz
A107: 3150 | B107: II Visonex LUKS TOP Wierzbięcin | C107: II KTS Koszalinianin Koszalin | D107: zapewnia gospodarz
A108: 3151 | B108: II KS ATS Stargard | C108: I KTS Koszalinianin Koszalin | D108: zapewnia gospodarz
B110: 14:30 kolejka 28
A111: =A108+1 -> 3152 | B111: UKS-T VICTORIA Chojna | C111: LUKS Gryfice | D111: zapewnia gospodarz
A112: =A111+1 -> 3153 | B112: UKS TEAM TENIS 2005 Białogard | C112: II UKS Champion Police | D112: zapewnia gospodarz
A113: =A112+1 -> 3154 | B113: MSZS Świdwin | C113: Trzynastka Szczecin | D113: zapewnia gospodarz
A114: =A113+1 -> 3155 | B114: II Visonex LUKS TOP Wierzbięcin | C114: I KTS Koszalinianin Koszalin | D114: zapewnia gospodarz
A115: =A114+1 -> 3156 | B115: II KS ATS Stargard | C115: II KTS Koszalinianin Koszalin | D115: zapewnia gospodarz
B118: Wyniki podawać SMS zaraz po meczu (30 min) na tel. 502 666 356 w formacie, nr meczu, wynik, np. 3033. 8:2
B119: Protokół wysłać do godz 24:00 tego samego dnia
B120: W 2 rundzie gramy zgodnie z rankingiem
B121: Julian Pawłasek, 19.05.2021
